Cogmind - Beta 17 @@@ ROGUE MODE // 2026.07.25 @ 17:58:19 Player: gorb Result: Destroyed by Y-54 Guardian via exploding Fusion Modulator Performance ------------- Evolutions (3) 1500 Regions Visited (6) 1200 Robots Destroyed (43) 215 Value Destroyed (1408) 1408 Prototype IDs (3) 60 Alien Tech Used (0) 0 Bonus (575) 575 TOTAL SCORE: 4958 Bonus ------- Pacifist 470 Follower Combat Kills 105 Cogmind --------- Core Integrity 0/700 Matter 300/300 Energy 100/100 System Corruption 0% Temperature Cool (24) Movement Core (100) Ox1 Location -7/Factory Parts ------- > --- POWER (2) -------- (None) > --- PROPULSION (4) --- (None) > --- UTILITY (4) ------ Terrain Scan Processor Advanced Targeting Computer Weapon Cycler > --- WEAPON (3) ------- Makeshift Axe > --- INVENTORY (5) ---- Light Nuclear Core Light Nuclear Core Aluminum Leg Aluminum Leg Peak State ------------ > --- POWER ------------ Light Nuclear Core Light Nuclear Core > --- PROPULSION ------- Wheel Wheel Wheel Wheel > --- UTILITY ---------- Small Storage Unit Medium Matter Pod Melee Analysis Suite Weapon Cycler > --- WEAPON ----------- Gauss Rifle KE Penetrator KE Penetrator > --- INVENTORY -------- Light Nuclear Core Wheel Terrain Scan Processor Advanced Targeting Computer Ion Cannon Gauss Rifle Datajack Makeshift Axe [Rating: 37] Favorites ----------- Power Light Nuclear Core Engine Improved Ion Engine Power Core Light Nuclear Core Propulsion Wheel Leg Aluminum Leg Wheel Wheel Utility Small Storage Unit Device Splice Drone Bay Storage Small Storage Unit Processor Melee Analysis Suite Protection Light Armor Plating Weapon KE Penetrator Energy Gun EM Pulse Gun Energy Cannon Ion Cannon Ballistic Gun KE Penetrator Special Weapon Mining Laser Slashing Weapon Makeshift Axe Special Melee Weapon Datajack Build | -11 -10 -10 -9 -9 -8 -7 ------- Run | Yrd Mat Min Mat Min Mat Fac Slots Evolved 6 | . . . 2 . 2 2 Power 1 | . . . . . 1 . Propulsion 2 | . . . 2 . . . Utility 2 | . . . . . 1 1 Weapon 1 | . . . . . . 1 Parts Attached 54 | 7 4 1 . 1 13 28 Power 12 | 1 2 . . . 4 5 Engine 8 | 1 2 . . . 4 1 Core 4 | . . . . . . 4 Reactor . | . . . . . . . Propulsion 15 | 3 . . . 1 4 7 Treads . | . . . . . . . Leg 2 | 1 . . . . . 1 Wheel 13 | 2 . . . 1 4 6 Hover . | . . . . . . . Flight . | . . . . . . . Utility 11 | 1 1 1 . . 2 6 Device 4 | . . 1 . . 1 2 Storage 2 | 1 . . . . . 1 Processor 4 | . 1 . . . . 3 Hackware . | . . . . . . . Protection 1 | . . . . . 1 . Artifact . | . . . . . . . Weapon 16 | 2 1 . . . 3 10 Energy Gun 1 | 1 . . . . . . Energy Cannon 1 | . . . . . 1 . Ballistic Gun 10 | 1 . . . . 1 8 Ballistic Cannon . | . . . . . . . Launcher . | . . . . . . . Special Weapon 2 | . 1 . . . . 1 Impact Weapon . | . . . . . . . Slashing Weapon 1 | . . . . . 1 . Piercing Weapon . | . . . . . . . Special Melee Weapon 1 | . . . . . . 1 Unidentified Prototypes 3 | . 1 1 . . . 1 Parts Lost 35 | . . . . . 11 24 Power 7 | . . . . . 2 5 Propulsion 13 | . . . . . 4 9 Utility 6 | . . . . . 3 3 Weapon 9 | . . . . . 2 7 Highest Loss Streak 7 | . . . . . 5 7 To Critical Strikes . | . . . . . . . Average Backups 5 | 3 5 7 6 6 6 5 Power 1 | . 2 2 2 2 . . Propulsion . | 1 1 . . . . . Utility 1 | . . 2 2 2 1 . Weapon 2 | . 1 2 2 2 2 2 Tool/Special . | . . . . . . . Unused Backups 4 | 1 . 2 . . 1 . Power . | . . . . . . . Propulsion 3 | 1 . 1 . . 1 . Utility . | . . . . . . . Weapon 1 | . . 1 . . . . Tool/Special . | . . . . . . . Average Slot Usage (%) 84 | . 98 100 77 84 82 81 Engine 10 | . 14 14 11 11 16 5 Core 2 | . . . . . . 5 Wheel 24 | . 28 28 22 29 27 20 Device 6 | . . 6 11 11 8 5 Storage 11 | . 14 14 11 11 9 13 Processor 5 | . 12 8 . . . 7 Protection 1 | . . . . . 4 . Energy Gun 2 | . 6 7 11 11 2 . Ballistic Gun 12 | . 14 14 11 11 3 16 Special Weapon 2 | . 7 7 . . 4 . Slashing Weapon 2 | . . . . . 5 3 Peak Build Rating 37 | 6 10 14 14 15 24 37 Average Rating 20 | 3 7 11 14 14 19 27 On Entrance 10 | . 6 9 14 14 15 15 Avg Prop Armor Cover (%) . | . . . . . . . Naked Turns . | . . . . . . . Heaviest Build 37 | 11 11 19 19 19 37 36 Greatest Support 52 | 32 32 32 32 42 52 42 Greatest Overweight (x) 10 | . . . . . 1 10 Average Overweight (x) . | . . . . . . . Largest Inventory Capacity 8 | 8 8 8 8 8 8 8 Average Capacity 7 | 5 8 8 8 8 8 7 Most Carried 8 | 5 8 8 6 7 8 8 Average Carried 5 | 3 6 6 6 6 6 5 Final Capacity 8 | 8 8 8 8 8 8 5 Final Carried 8 | 3 8 6 6 7 8 4 Class Distribution -------------------- 68% | Mutant 16% | Scavenger-Gunner 14% | Scavenger-Mutant Dominant Class ---------------- Mutant | -10/Materials Mutant | -10/Mines Mutant | -9/Materials Mutant | -9/Mines Mutant | -8/Materials Scavenger-Gunner | -7/Factory Resources | -11 -10 -10 -9 -9 -8 -7 ----------- Run | Yrd Mat Min Mat Min Mat Fac Matter Collected 1381 | 270 . . . 144 160 807 Remotely . | . . . . . . . Salvage Created 1585 | . . . . . 466 1119 Parts 89 | . . . . . 28 61 Haulers Intercepted . | . . . . . . . Recyclers Shooed 3 | . . 1 . . . 2 Parts Field Recycled . | . . . . . . . Retrieved Matter . | . . . . . . . Parts Self-Destructed . | . . . . . . . Prevented . | . . . . . . . Parts Restored . | . . . . . . . Kills | -11 -10 -10 -9 -9 -8 -7 ------- Run | Yrd Mat Min Mat Min Mat Fac Combat Hostiles Destroyed 31 | . . . . . 7 24 Melee 8 | . . . . . 6 2 Guns 22 | . . . . . . 22 Classes Destroyed 9 | . . . . . 4 5 Worker 6 | . . . . . 1 5 Builder 4 | . . . . . . 4 Recycler 2 | . . . . . 2 . Swarmer 6 | . . . . . . 6 Cutter 2 | . . . . . . 2 Grunt 13 | . . . . . 4 9 Sentry 3 | . . . . . 3 . Hunter 5 | . . . . . . 5 Programmer 2 | . . . . . . 2 Best Kill Streak 6 | . . . . . 5 6 Combat Bots Only 5 | . . . . . 4 5 Max Kills in Single Turn 2 | . . . . . 1 2 Gunslinging . | . . . . . . . Exploded . | . . . . . . . Melee 1 | . . . . . 1 1 Uniques/NPCs Destroyed . | . . . . . . . Combat | -11 -10 -10 -9 -9 -8 -7 -------- Run | Yrd Mat Min Mat Min Mat Fac Hostile Shots Fired 347 | . . 8 . . 85 254 Missed 100 | . . 2 . . 24 74 Hits 247 | . . 6 . . 61 180 Melee 7 | . . . . . . 7 Projectile 240 | . . 6 . . 61 173 AOE 3 | . . . . . . 3 Critical Strikes 10 | . . . . . 2 8 Damage Taken 3654 | . . 61 . . 979 2614 Core 948 | . . 20 . . 194 734 Absorbed by Shields 288 | . . . . . . 288 Core Remaining (%) 89 | 100 . 92 . 100 64 . Volleys Fired 105 | . 2 . . . 26 77 Largest 3 | . 1 . . . 2 3 Hottest 160 | . 100 . . . 160 94 Shots Fired 202 | . 2 . . . 29 171 Gun 185 | . . . . . 15 170 Cannon 4 | . . . . . 4 . Launcher . | . . . . . . . Special 13 | . 2 . . . 10 1 Kinetic 170 | . . . . . . 170 Thermal 16 | . 2 . . . 14 . Explosive . | . . . . . . . Electromagnetic 15 | . . . . . 15 . Robot Hit Streak 14 | . . . . . 7 14 Robot Miss Streak 8 | . . . . . 2 8 Penetration Max 1 | . . . . . . 1 Secondary Targets 2 | . . . . . . 2 Max Gunslinging Chain 1 | . . . . . . 1 Shots Hit Robots 136 | . . . . . 34 102 Core Hits 82 | . . . . . 11 71 Critical Kills 1 | . . . . . . 1 Critical Parts Destroyed 1 | . . . . . . 1 Critical Strikes 5 | . . . . . 3 2 Destroy 2 | . . . . . . 2 Sever 3 | . . . . . 3 . Melee Attacks 34 | . . . . . 26 8 Impact . | . . . . . . . Slashing 33 | . . . . . 26 7 Piercing . | . . . . . . . Sneak Attacks 2 | . . . . . 2 . Combat Hostiles . | . . . . . . . Follow-up Attacks . | . . . . . . . Damage Inflicted 3256 | . . 13 . . 1067 2176 Guns 2145 | . . . . . 143 2002 Cannons 46 | . . . . . 46 . Explosions 63 | . . . . . 63 . Melee 896 | . . . . . 756 140 Ramming 58 | . . 13 . . 11 34 Kinetic 2002 | . . . . . . 2002 Thermal 157 | . . . . . 157 . Explosive . | . . . . . . . Electromagnetic 143 | . . . . . 143 . Impact . | . . . . . . . Slashing 896 | . . . . . 756 140 Piercing . | . . . . . . . Highest Corruption 1 | . . . . . 1 . Average Corruption 1 | . . . . . 1 . Corruption Purged . | . . . . . . . Corruption Blocked . | . . . . . . . Effects 1 | . . . . . 1 . Data Loss (major) 1 | . . . . . 1 . Overload Shots . | . . . . . . . Overflow Damage 4 | . . . . . 4 . Projectiles . | . . . . . . . Explosions 1 | . . . . . 1 . Melee 3 | . . . . . 3 . Knockbacks . | . . . . . . . Impact . | . . . . . . . Kinetic . | . . . . . . . Secondary . | . . . . . . . Self-Inflicted Damage 73 | . . 6 . . 54 13 Shots 1 | . . . . . 1 . Rammed 11 | . . 4 . . 1 6 Targets Rammed 13 | . . 4 . . 1 8 Kicked 2 | . . . . . . 2 Crushed . | . . . . . . . Highest Temperature 303 | . 20 . . . 303 173 Average Temperature 54 | . 12 . . . 71 43 Received Heat Transfer 969 | . . 15 . . 441 513 Siege Activations . | . . . . . . . Martial Activations . | . . . . . . . Shielding Activations . | . . . . . . . Robots Disrupted . | . . . . . . . Combat Hostiles . | . . . . . . . Robots Corrupted 1 | . . . . . 1 . Combat Hostiles 1 | . . . . . 1 . Parts Fried . | . . . . . . . Impact Corruptions . | . . . . . . . Robots Melted . | . . . . . . . Combat Hostiles . | . . . . . . . Parts Melted . | . . . . . . . Heat Transferred 224 | . . . . . 224 . Parts Sabotaged . | . . . . . . . Parts Stolen . | . . . . . . . Parts Stripped . | . . . . . . . Power Chain Reactions 1 | . . . . . 1 . Alert | -11 -10 -10 -9 -9 -8 -7 ------- Run | Yrd Mat Min Mat Min Mat Fac Maximum Alert Level 1 | . . . . . . 1 Low Security (%) 94 | 100 100 100 100 100 100 88 Level 1 5 | . . . . . . 11 Level 2 . | . . . . . . . Level 3 . | . . . . . . . Level 4 . | . . . . . . . Level 5 . | . . . . . . . High Security . | . . . . . . . Max Security . | . . . . . . . Peak Influence 253 | . 1 15 1 . 108 253 Initial 29 | . . . 1 . . 29 Average 51 | . . 1 1 . 39 86 Influence Increases 1222 | . 1 15 . . 441 765 Destroy 0b10 Robot/C 680 | . . . . . 200 480 Destroy 0b10 Robot/NC 60 | . . . . . 15 45 Destroy Leader 150 | . . . . . 50 100 Allied During Kill 11 | . . . . . 11 . Disable Machine 45 | . . . . . 15 30 Destroy Structure 21 | . 1 . . . 15 5 Partial Spotted 15 | . . . . . 15 . Lose Combat Pursuer 240 | . . 15 . . 120 105 Influence Decreases 995 | . 1 10 4 1 376 603 Entered New Map 41 | . . . 4 1 . 36 Time Decay 598 | . 1 10 . . 236 351 Lost Part 316 | . . . . . 100 216 Lost Ally 40 | . . . . . 40 . Squads Dispatched 10 | . 1 . . . 3 6 Investigation 1 | . . . . . . 1 Extermination 1 | . . . . . . 1 Reinforcement 7 | . 1 . . . 3 3 Assault . | . . . . . . . Garrison 1 | . . . . . . 1 Intercept . | . . . . . . . Searches Triggered . | . . . . . . . Construction Impeded 2 | . . . . . . 2 Haulers Reinforced . | . . . . . . . Active Scanning Responses . | . . . . . . . Cargo Convoy Interrupts . | . . . . . . . Stealth | -11 -10 -10 -9 -9 -8 -7 --------- Run | Yrd Mat Min Mat Min Mat Fac Distress Signals 3 | . . . . . 1 2 Communications Jammed . | . . . . . . . Distress Signals . | . . . . . . . Times Spotted 72 | . 1 5 . . 26 40 Peak Tracking Total 7 | . 1 3 . . 7 7 Tactical Retreats 11 | . . 1 . . 5 5 Traps | -11 -10 -10 -9 -9 -8 -7 ------- Run | Yrd Mat Min Mat Min Mat Fac Traps Triggered 2 | . . . . . 1 1 Indirectly . | . . . . . . . Trap Hack Attempts . | . . . . . . . Triggered . | . . . . . . . Disarmed . | . . . . . . . Reprogrammed . | . . . . . . . Reused . | . . . . . . . Traps Extracted . | . . . . . . . Installed . | . . . . . . . Triggered . | . . . . . . . Machines | -11 -10 -10 -9 -9 -8 -7 ---------- Run | Yrd Mat Min Mat Min Mat Fac Machines Disabled 3 | . . . . . 1 2 Max in Single Turn 1 | . . . . . 1 1 Garrison Access 1 | . . . . . . 1 Machines Repaired . | . . . . . . . Machines Dismantled . | . . . . . . . Machines Sabotaged . | . . . . . . . Overloaded Fab Kills . | . . . . . . . Hacking | -11 -10 -10 -9 -9 -8 -7 --------- Run | Yrd Mat Min Mat Min Mat Fac Machines Accessed 3 | . . 1 . . . 2 Terminals . | . . . . . . . Fabricators 1 | . . . . . . 1 Repair Stations . | . . . . . . . Recycling Units . | . . . . . . . Scanalyzers . | . . . . . . . Garrison Access 1 | . . . . . . 1 Total Hacks 5 | . . 1 . . . 4 Successful 3 | . . 1 . . . 2 Failed 2 | . . . . . . 2 Catastrophic . | . . . . . . . Database Lockouts . | . . . . . . . Manual . | . . . . . . . Terminals . | . . . . . . . Fabricators 1 | . . . . . . 1 Repair Stations . | . . . . . . . Recycling Units . | . . . . . . . Scanalyzers . | . . . . . . . Garrison Access 3 | . . . . . . 3 Terminal Hacks 1 | . . 1 . . . . Open Door 1 | . . 1 . . . . Fabricator Hacks 1 | . . . . . . 1 Build 1 | . . . . . . 1 Repair Station Hacks . | . . . . . . . Recycling Unit Hacks . | . . . . . . . Scanalyzer . | . . . . . . . Garrison Access Hacks 1 | . . . . . . 1 Seal Access 1 | . . . . . . 1 Unauthorized Hacks . | . . . . . . . Terminals . | . . . . . . . Fabricators . | . . . . . . . Repair Stations . | . . . . . . . Recycling Units . | . . . . . . . Scanalyzers . | . . . . . . . Garrison Access . | . . . . . . . Data Cores Recovered . | . . . . . . . Used . | . . . . . . . Hacking Detections 1 | . . . . . . 1 Full Trace Events . | . . . . . . . Feedback Events . | . . . . . . . Feedback Blocked . | . . . . . . . Robot Schematics Acquired . | . . . . . . . Robots Built . | . . . . . . . Authchips . | . . . . . . . Time . | . . . . . . . Total Robot Build Rating . | . . . . . . . Part Schematics Acquired . | . . . . . . . Parts Built 2 | . . . . . . 2 Authchips . | . . . . . . . Time 106 | . . . . . . 106 Total Part Build Rating 12 | . . . . . . 12 Part Studies Acquired . | . . . . . . . Parts Repaired . | . . . . . . . Time . | . . . . . . . Parts Recycled . | . . . . . . . Recycled Matter . | . . . . . . . Retrieved Matter . | . . . . . . . Retrieved Components . | . . . . . . . Parts Scanalyzed . | . . . . . . . Part Schematics Acquired . | . . . . . . . Parts Damaged . | . . . . . . . Bothacking | -11 -10 -10 -9 -9 -8 -7 ------------ Run | Yrd Mat Min Mat Min Mat Fac Used RIF Installer . | . . . . . . . Robots Hacked 2 | . . . . . . 2 Non-combat 1 | . . . . . . 1 Combat 1 | . . . . . . 1 Robot Hacks Applied 2 | . . . . . . 2 parse_system 1 | . . . . . . 1 no_distress 1 | . . . . . . 1 Relay Couplers Released . | . . . . . . . Fabnet Peak Effective % . | . . . . . . . Robots Rewired . | . . . . . . . Allies Hacked . | . . . . . . . Hacks Repelled . | . . . . . . . Allies | -11 -10 -10 -9 -9 -8 -7 -------- Run | Yrd Mat Min Mat Min Mat Fac Total Allies 4 | . . . . 2 2 . Largest Group 2 | . . . . 2 2 . Highest-Rated Group 46 | . . . . 46 46 . Highest-Rated Ally 31 | . . . . 31 31 . Total Orders . | . . . . . . . Ally Attacks 25 | . . . . . 25 . Total Damage 236 | . . . . . 236 . Kills 3 | . . . . . 3 . Allies Corrupted . | . . . . . . . Allies Melted . | . . . . . . . Intel | -11 -10 -10 -9 -9 -8 -7 ------- Run | Yrd Mat Min Mat Min Mat Fac Active Infowar (turns) . | . . . . . . . Robot Analysis Total . | . . . . . . . Derelict Logs Recovered 1 | . . . . 1 . . Drone Launches 15 | . . . . . 15 . Drone Recoveries 9 | . . . . . 9 . Exploration | -11 -10 -10 -9 -9 -8 -7 ------------- Run | Yrd Mat Min Mat Min Mat Fac Turns Passed 2405 | 64 238 135 14 211 618 1125 Spaces Moved 1558 | 55 165 122 15 182 330 689 Core 44 | 16 . . . . . 28 Treads . | . . . . . . . Legs 34 | 3 . . . . . 31 Wheels 1480 | 36 165 122 15 182 330 630 Hover . | . . . . . . . Flight . | . . . . . . . Fastest Speed 50 | 50 100 100 100 93 86 50 Average Speed 95 | 86 100 100 100 95 89 96 Slowest Speed 550 | 120 100 100 100 100 115 550 Overloaded Moves . | . . . . . . . Propulsion Burnouts . | . . . . . . . Robots Hopped . | . . . . . . . Potential Cave-ins . | . . . . . . . Cave-ins Triggered . | . . . . . . . Exploration Rate (%) 19 | 4 26 26 3 23 36 17 Regions Visited 6 Branch Regions 2 Pre-discovered Areas 1 | . . . . 1 . . Known Exits Taken . | . . . . . . . Unknown Exits Taken 6 | 1 1 1 1 1 1 . Scrap Searched 1 | . . . . 1 . . Spaces Dug 10 | . 2 . . . 8 . Terrain Destroyed 32 | . 2 . . . 14 16 Melee 2 | . . . . . 2 . Projectile 26 | . 2 . . . 8 16 AOE 4 | . . . . . 4 . Terrain Rammed . | . . . . . . . Walls Destroyed . | . . . . . . . Machines Disabled . | . . . . . . . Actions | -11 -10 -10 -9 -9 -8 -7 --------- Run | Yrd Mat Min Mat Min Mat Fac Total 2256 | 70 231 137 14 218 574 1012 Wait 407 | . 53 3 . 34 158 159 Move 1552 | 54 164 121 14 181 329 689 Hop . | . . . . . . . Pick Up 55 | 7 7 2 . 2 10 27 Fast Attach 7 | 4 . . . . 3 . Attach 43 | 3 2 2 . 1 9 26 Detach 2 | . . 1 . . 1 . Swap 17 | . 2 . . . 8 7 Drop 21 | 2 1 4 . . 3 11 Fire 105 | . 2 . . . 26 77 Melee 34 | . . . . . 26 8 Ram 11 | . . 4 . . 1 6 Kick 2 | . . . . . . 2 Crush . | . . . . . . . Escape Stasis . | . . . . . . . Rewire . | . . . . . . . Trap . | . . . . . . . Miscellaneous . | . . . . . . . Route ------- -11/Scrapyard -10/Materials -10/Mines -9/Materials -9/Mines (discovered 2 exits: *Mat / [*Exi]) -8/Materials (discovered 2 exits: *Fac / [*Sto]) -7/Factory History --------- Turn | Location | Event 19 | -11/Scrapyard | Discovered new exit (range 15) 65 | -11/Scrapyard | Entered Materials 283 | -10/Materials | Discovered new exit (range 13) 303 | -10/Materials | Entered Mines 310 | -10/Mines | Build established: Mutant 311 | -10/Mines | A weapon hastily lodged in a ceiling crevice suddenly fell to the ground 357 | -10/Mines | Found the Drone Emporium 369 | -10/Mines | Found Prototype Device 370 | -10/Mines | Identified Splice Drone Bay 434 | -10/Mines | Discovered new exit (range 4) 438 | -10/Mines | Entered Materials 438 | -9/Materials | Evolved 2 slots: Propulsion x2 438 | -9/Materials | Discovered new exit (range 14) 452 | -9/Materials | Entered Mines 463 | -9/Mines | Discovered new exit (range 10) 478 | -9/Mines | Deemed a non-threat by the Exiles lab entrance 478 | -9/Mines | Discovered new exit (range 5) 584 | -9/Mines | Learned location of Zion (-6) 663 | -9/Mines | Entered Materials 663 | -8/Materials | Accompanied by 2 allies 663 | -8/Materials | Evolved 2 slots: Power x1, Utility x1 668 | -8/Materials | Led the pair of lost Derelicts to an unsafe place 842 | -8/Materials | Lost 5 parts (1p2n1u1w) 1195 | -8/Materials | Discovered new exit (range 13) 1267 | -8/Materials | Discovered new exit (range 15) 1281 | -8/Materials | Entered Factory 1281 | -7/Factory | Evolved 2 slots: Utility x1, Weapon x1 1301 | -7/Factory | Lost 3 parts (2n1u) 1424 | -7/Factory | Fabricated KE Penetrator (x2) 1604 | -7/Factory | Lost 3 parts (3n) 1695 | -7/Factory | Garrison activated, responded to threat 2004 | -7/Factory | Build established: Scavenger-Gunner 2278 | -7/Factory | Core integrity fell below 50% 2293 | -7/Factory | Lost 6 parts (1p3n1u1w) 2347 | -7/Factory | Lost 7 parts (1p1n2u3w) 2406 | -7/Factory | Destroyed by Y-54 Guardian via exploding Fusion Modulator Last Messages --------------- [Achievement: Junior Dev] U-05 Engineer lays Concrete. Acquired 35 matter. Kicked T-07 Excavator. K-01 Serf collects debris. Acquired Assault Rifle. Kicked R-06 Scavenger. Dropped Remote Datajack. R-06 Scavenger collects Remote Datajack. G-47 Trooper destroyed. G-47 Trooper suffers critical hit (Destroy). G-47 Trooper destroyed. Acquired 53 matter. Acquired Aluminum Leg. Acquired Lgt. Nuclear Core. Assault Rifle destroyed. Aluminum Leg destroyed. Acquired Aluminum Leg. Acquired Lgt. Nuclear Core. Fusion Modulator explodes. Map ----- +----------------------------------------------------+ | ##+######## #????????????????????????????????????? | | ?# #????????????????????????????????????? | | ?# #????????????????????????????????????? | | ## #????????????????????????????????????? | | #????????????????????????????????????? | | ##/##### #????????????????????????????????????? | | #? #????????????????????????????????????? | | #?? #????????????????????????????????????? | | ! #??? #???????????????##########??????????? | | #???? #???????????????# #??????????? | | ] #?????#???????????????# """ #??????????? | | ][ #?????????????????????# """ #??????????? | | #?????????????????????# """%= #??????????? | | #?????????????????????# = #??????????? | | +#######?????????????????????# " " #??????????? | | #???????????????????????????# "Y" #??????????? | | !#???????????????????????????# """ #??????????? | | #???????????????????????????# #??????????? | | ##???????????????????????########+#########?????? | | ! #?????????????????????# +?? | | ######+###????????############## #########?????? | | ## " #????????# ##???# #?????????????? | | # "%" #????????# ;#???# #?????????????? | | # " #????????# ;# #?# #?????????????? | | # #????????# ; #?#*#?????????????? | | # #????????# @ ; #?#*#?????????????? | | # #????????# ; ##?#[#?????????????? | | ## #????????# Y; #??#*############??? | | ## ##########= ; #??#=% !=]=! | | =## # # ; #?#=############??? | | ##%= # !!* # ;;####%#?????????????? | | #### # !!* # ; %%%!#?????????????? | | + # !! # ;#####%####??????????? | | #### # # rk ## =[ #??????????? | | ???# # """ # """ # #??????????? | | ???# # """ #! t""" # #??????????? | | ???# # """ # """ # ##??????????? | | ???# # !# ##########???????????? | | #########/######+######+########?????????????????? | | ??????????? | | ??????????? | | """ ??????????? | | """"" ???????????? | | """"" ???????????? | | # ###+############ ????????????? | | # ! #??????????????? ????????????? | | ? #???????????????? ????????????? | | ? "F"" #????????????????? ?????????????? | | ?? """" #?????????????????? ?????????????? | | ?? #??????????????????? ??????????????? | +----------------------------------------------------+ Best States ------------- Heat Dissipation 34 Energy Generation 23 Energy Capacity 430 Matter Stores 360 Matter Capacity 400 Sight Range 16 Terrain Scan Density 85 Armor Coverage 150 Weapon Cycling 15 Evasion (%) 55 Targeting Accuracy 8 Melee Accuracy 5 Recoil Reduction 4 Item Schematics ----------------- None Robot Schematics ------------------ None Fabricated ------------ KE Penetrator | x2 | -7/Factory | Preloaded Repaired ---------- Nothing Studied --------- None Alien Tech Used ----------------- None Achievements -------------- Hydra Junior Dev Satisfying Challenges ------------ None Game ------ Seed CatalystFrostMicrothruster Manual? 0 Play Time 00:37:53 Cumulative 42.9 hours Start 2026.07.25 @ 17:06:53 End 2026.07.25 @ 17:58:19 Sessions 1 Manual Loads 0 Difficulty Rogue Special Mode None Game No. 73 Rogue 71 Adventurer 0 Explorer 2 Win Type - Total 0 Types 0/0/0/0/0/0/0/0/0/0 Lore% 24 Gallery% 26 Achievement% 19 Wizard Run 0 Options --------- Layout 1 ASCII 0 Keyboard 0 Movement Mouse Keybinds 0 Fullscreen 1 Font 24/Smallcaps Map View 50x35 Zoom Use 0% Tactical HUD 0 Map Filters NONE Filters NONE Steam 1 RUN: ef060f01-1015-4b26-bc4f-39423421be31